bitfinex-derivatives/quotes_BNBF0:USTF0_20250603
["timestamp","ask_amount","ask_price","bid_price","bid_amount"]
[1748983219127,1.02958921,661.08,660.45,0.30282383]
[1748983219329,1.02958921,661.07,660.45,0.30282383]
[1748983219624,1.02958921,661.06,660.45,0.30282383]
[1748983219824,1.11581407,661.3,660.45,0.30282383]
[1748983220027,1.02961695,661.29,660.45,0.30282383]
[1748983220324,1.02961695,661.28,660.45,0.30282383]
[1748983220522,1.02961695,661.27,660.45,0.30282383]
[1748983220725,1.02961695,661.26,660.45,0.30282383]
[1748983220927,1.02961695,661.25,660.45,0.30282383]
[1748983221123,1.02961695,661.24,660.45,0.30282383]
[1748983221425,3.68209165,662.1,660.5,0.47834208]
[1748983221426,1.02961695,661.23,660.5,0.47834208]
[1748983221630,1.02961695,661.22,660.51,0.30279632]
[1748983221930,1.02961695,661.21,660.51,0.30279632]
[1748983222130,1.02961695,661.2,660.51,0.30279632]
[1748983222429,1.11581407,661.32,660.51,0.30279632]
[1748983222430,1.02961695,661.19,660.51,0.30279632]
[1748983222626,1.02889691,661.18,660.51,0.30279632]
[1748983222829,1.02889691,661.17,660.51,0.30279632]
[1748983223029,1.02889691,661.16,660.51,0.30279632]
[1748983223230,1.02889691,661.15,660.51,0.30279632]
[1748983223427,1.02889691,661.14,660.51,0.30279632]
[1748983223627,1.02896782,661.13,660.51,0.30279632]
[1748983223826,1.4814593,661.44,660.51,0.30279632]
[1748983223827,1.02896782,661.12,660.51,0.30279632]
[1748983224033,1.02896782,661.11,660.51,0.7811384]
[1748983224234,1.02896782,661.1,660.51,0.7811384]
[1748983224430,3.68209165,662.04,660.51,0.7811384]
[1748983224431,1.11481625,661.3,660.59,0.47834208]
[1748983224629,1.02882152,661.29,660.6,0.30275507]
[1748983224830,1.02882152,661.28,660.6,0.30275507]
[1748983225028,1.11481625,661.3,660.6,0.30275507]
[1748983225029,1.02882152,661.27,660.6,0.30275507]
[1748983225229,1.02882152,661.26,660.6,0.78109715]
[1748983225433,1.02882152,661.25,660.6,0.78109715]
[1748983225630,1.02882152,661.24,660.6,0.78109715]
[1748983225830,3.68209165,661.94,660.6,0.30275507]
[1748983225831,1.02882152,661.23,660.6,0.30275507]
[1748983226031,1.02882152,661.22,660.61,0.47834208]
[1748983226332,1.02882152,661.21,660.62,0.78108798]
[1748983226531,1.02882152,661.2,660.63,0.30274132]
[1748983226733,1.02882152,661.19,660.63,0.30274132]
[1748983226934,1.02882152,661.18,660.63,0.30274132]
[1748983227136,1.02882152,661.17,660.63,0.7810834]
[1748983227338,1.02882152,661.16,660.63,0.7810834]
[1748983227636,1.11427759,661.36,660.63,0.30274132]
[1748983227834,1.02869145,661.35,660.63,0.30274132]
[1748983228032,1.02869145,661.34,660.63,0.30274132]
[1748983228236,1.02869145,661.33,660.63,0.30274132]
[1748983228436,1.02869145,661.32,660.63,0.30274132]
[1748983228642,1.02869145,661.31,660.63,0.30274132]
[1748983228942,1.02869145,661.3,660.63,0.30274132]
[1748983229142,1.02869145,661.29,660.63,0.30274132]
[1748983229344,1.02869145,661.28,660.63,0.30274132]
[1748983229539,1.02869145,661.27,660.63,0.30274132]
[1748983229742,1.02869145,661.26,660.63,0.30274132]
[1748983229938,1.02869145,661.25,660.63,0.30274132]
[1748983230138,1.02869145,661.24,660.63,0.30274132]
[1748983230341,1.02869145,661.23,660.63,0.30274132]
[1748983230641,1.02869145,661.22,660.63,0.30274132]
[1748983230840,1.02869145,661.21,660.63,0.30274132]
[1748983231038,1.11427759,661.37,660.63,0.30274132]
[1748983231039,1.02869145,661.2,660.63,0.30274132]
[1748983231241,1.02869145,661.19,660.63,0.30274132]
[1748983231544,1.02843947,661.18,660.63,0.30274132]
[1748983231739,1.02843947,661.17,660.63,0.30274132]
[1748983232045,1.02843947,661.16,660.63,0.30274132]
[1748983232239,1.02843947,661.15,660.63,0.30274132]
[1748983232441,1.02843947,661.14,660.63,0.30274132]
[1748983232644,1.11388842,661.37,660.63,0.30274132]
[1748983232841,1.02894007,661.36,660.63,0.30274132]
[1748983233044,1.02894007,661.35,660.63,0.30274132]
[1748983233246,1.02894007,661.34,660.63,0.30274132]
[1748983233448,1.02894007,661.33,660.63,0.30274132]
[1748983233645,1.02894007,661.32,660.63,0.30274132]
[1748983233844,1.02894007,661.31,660.63,0.30274132]
[1748983234049,1.02894007,661.3,660.63,0.30274132]
[1748983234249,1.02894007,661.29,660.63,0.30274132]
[1748983234446,1.02894007,661.28,660.63,0.30274132]
[1748983234747,1.02894007,661.27,660.63,0.30274132]
[1748983234945,1.02894007,661.26,660.63,0.30274132]
[1748983235147,1.02894007,661.25,660.63,0.30274132]
[1748983235345,1.11416947,661.58,660.63,0.30274132]
[1748983235545,1.02892849,661.57,660.63,0.30274132]
[1748983235752,1.02892849,661.56,660.63,0.30274132]
[1748983235949,1.02892849,661.55,660.63,0.30274132]
[1748983236149,1.02892849,661.54,660.63,0.30274132]
[1748983236453,1.02892849,661.53,660.63,0.30274132]
[1748983236657,1.02892849,661.52,660.63,0.30274132]
[1748983236854,1.02892849,661.51,660.63,0.30274132]
[1748983237154,1.02892849,661.5,660.63,0.30274132]
[1748983237353,1.02892849,661.49,660.63,0.30274132]
[1748983237550,1.02892849,661.48,660.63,0.30274132]
[1748983237749,1.02892849,661.47,660.63,0.30274132]
[1748983237948,1.02892849,661.46,660.63,0.30274132]
[1748983238152,3.68209165,662.67,660.63,0.30274132]
[1748983238153,1.02892849,661.45,660.63,0.30274132]
[1748983238353,1.02892849,661.44,660.63,0.30274132]
[1748983238656,1.02892849,661.43,660.63,0.30274132]
[1748983238854,1.02892849,661.42,660.63,0.30274132]
[1748983239051,1.02892849,661.41,660.63,0.30274132]
[1748983239252,1.02854684,661.4,660.63,0.30274132]
[1748983239450,1.11361916,661.57,660.63,0.30274132]
[1748983239451,1.02854684,661.39,660.63,0.30274132]
[1748983239756,1.11361916,661.57,660.63,0.30274132]
[1748983239757,1.02854684,661.38,660.63,0.30274132]
[1748983239956,1.11361916,661.57,660.63,0.30274132]
[1748983239957,1.02854684,661.37,660.63,0.30274132]
[1748983240159,1.02854684,661.36,660.63,0.30274132]
[1748983240359,1.02854684,661.35,660.63,0.30274132]
[1748983240558,1.11361916,661.57,660.63,0.30274132]
[1748983240559,1.02854684,661.34,660.63,0.30274132]
[1748983240760,1.02854684,661.33,660.63,0.30274132]
[1748983240962,1.02854684,661.32,660.63,0.30274132]
[1748983241260,1.02854684,661.31,660.63,0.30274132]
[1748983241461,1.02854684,661.3,660.63,0.30274132]
[1748983241762,1.02854684,661.29,660.65,0.47834208]
[1748983241955,1.02854684,661.28,660.66,0.30272757]
[1748983242262,1.11361916,661.54,660.66,0.78106965]
[1748983242559,1.02818446,661.53,660.66,0.78106965]
[1748983242854,1.02818446,661.52,660.66,0.78106965]
[1748983243060,1.02818155,661.51,660.66,0.30272757]
[1748983243257,1.02818155,661.5,660.66,0.78106965]
[1748983243458,1.02818155,661.49,660.66,0.78106965]
[1748983243654,1.02818155,661.48,660.66,0.78106965]
[1748983243953,1.02818155,661.47,660.66,0.78106965]
[1748983244156,1.02818155,661.46,660.67,0.47834208]
[1748983244356,1.02818155,661.45,660.68,0.30271841]
[1748983244560,1.02818155,661.44,660.68,0.30271841]
[1748983244858,1.02818155,661.43,660.68,0.78106049]
[1748983245164,1.02818155,661.42,660.68,0.78106049]
[1748983245359,1.02818155,661.41,660.68,0.78106049]
[1748983245558,1.02818155,661.4,660.68,0.78106049]
[1748983245762,1.02818155,661.39,660.69,0.47834208]
[1748983245960,1.02818155,661.38,660.7,0.30270924]
[1748983246159,1.11292708,661.54,660.7,0.78105132]
[1748983246160,1.02818155,661.37,660.7,0.78105132]
[1748983246363,1.02818155,661.36,660.7,0.78105132]
[1748983246559,1.02818155,661.35,660.7,0.78105132]
[1748983246759,1.11292708,661.54,660.7,0.78105132]
[1748983246760,1.02818155,661.34,660.7,0.78105132]
[1748983246964,1.02808049,661.33,660.71,0.47834208]
[1748983247162,1.02808049,661.32,660.72,0.78104216]
[1748983247364,1.02808049,661.31,660.73,0.3026955]
[1748983247562,1.02808049,661.3,660.73,0.3026955]
[1748983247865,1.11294008,661.54,660.73,0.3026955]
[1748983247866,1.02808049,661.29,660.73,0.3026955]
[1748983248162,1.11294008,661.53,660.75,0.47834208]
[1748983248361,1.02807706,661.52,660.76,0.30268176]
[1748983248561,1.02807706,661.51,660.76,0.30268176]
[1748983248761,1.02807706,661.5,660.76,0.30268176]
[1748983248964,1.02807706,661.49,660.76,0.30268176]
[1748983249265,1.02807706,661.48,660.88,0.47834208]
[1748983249464,1.11294008,661.51,660.9,0.47834208]
[1748983249465,1.02807706,661.47,660.9,0.47834208]
[1748983249665,1.02807706,661.46,660.91,0.30261306]
[1748983249865,1.02807706,661.45,660.91,0.30261306]
[1748983250061,1.02807706,661.44,660.91,0.30261306]
[1748983250363,1.02807706,661.43,660.91,0.78095514]
[1748983250570,1.02807706,661.42,660.91,0.78095514]
[1748983250767,3.68209165,662.21,660.91,0.78095514]
[1748983250768,1.4814593,661.61,660.93,0.47834208]
[1748983250965,1.11300932,661.5,660.94,0.30259932]
[1748983251168,1.02817975,661.49,660.94,0.7809414]
[1748983251368,1.02817975,661.48,660.94,0.7809414]
[1748983251570,1.02817975,661.47,660.95,0.47834208]
[1748983251869,1.02817975,661.46,660.96,0.30259017]
[1748983252072,1.02817975,661.45,660.96,0.30259017]
[1748983252369,1.02817975,661.44,660.96,0.78093225]
[1748983252674,1.02817975,661.43,660.96,0.78093225]
[1748983252970,1.02817975,661.42,660.99,0.47834208]
[1748983253167,1.02817975,661.41,661.01,0.47834208]
[1748983253473,1.02817975,661.4,661.02,0.3025627]
[1748983253667,1.02817975,661.39,661.02,0.3025627]
[1748983253867,1.02817975,661.38,661.02,0.3025627]
[1748983254066,1.02817975,661.37,661.02,0.3025627]
[1748983254273,1.02817975,661.36,661.02,0.3025627]
[1748983254474,1.02817975,661.35,661.02,0.3025627]
[1748983254674,1.02817975,661.34,661.02,0.3025627]
[1748983254871,1.02817975,661.33,661.02,0.3025627]
[1748983255069,1.11300932,661.47,661.02,0.3025627]
[1748983255070,1.02817975,661.32,661.02,0.3025627]
[1748983255369,1.02817975,661.31,661.02,0.3025627]
[1748983255572,3.68209165,662.14,661.02,0.3025627]
[1748983255573,1.02817975,661.3,661.02,0.3025627]
[1748983255771,1.02817975,661.29,661.02,0.3025627]
[1748983255967,1.02817975,661.28,661.02,0.3025627]
[1748983256172,1.02817975,661.27,661.02,0.3025627]
[1748983256470,1.02817975,661.26,661.02,0.3025627]
[1748983256674,3.68209165,662.36,661.02,0.3025627]
[1748983256675,1.02817975,661.25,661.02,0.3025627]
[1748983256970,1.02817975,661.24,661.02,0.3025627]
[1748983257171,1.02817975,661.23,661.02,0.3025627]
[1748983257476,1.11300932,661.39,661.02,0.3025627]
[1748983257477,1.02817975,661.22,661.02,0.3025627]
[1748983257674,1.02817975,661.21,661.02,0.3025627]
[1748983257973,1.02817975,661.2,661.02,0.3025627]
[1748983258175,1.02817975,661.19,661.02,0.3025627]
[1748983258373,1.02817975,661.18,661.02,0.3025627]
[1748983258572,1.11407323,661.46,661.02,0.3025627]
[1748983258770,1.03014804,661.45,661.02,0.3025627]
[1748983258972,1.03014804,661.44,661.02,0.3025627]
[1748983259169,1.11407323,661.47,661.02,0.3025627]
[1748983259170,1.03014804,661.43,661.02,0.3025627]
[1748983259474,1.03014804,661.42,661.02,0.3025627]
[1748983259677,1.03014804,661.41,661.02,0.3025627]
[1748983259872,1.03014804,661.4,661.02,0.3025627]
[1748983260072,1.03014804,661.39,661.02,0.3025627]
[1748983260273,1.03014804,661.38,661.02,0.3025627]
[1748983260478,1.11407323,661.47,661.02,0.3025627]
[1748983260479,1.03014804,661.37,661.02,0.3025627]
[1748983260674,3.68209165,662.42,661.02,0.3025627]
[1748983260675,1.03014804,661.36,661.02,0.3025627]
[1748983260979,1.03014804,661.35,661.02,0.3025627]
[1748983261172,1.0303652,661.34,661.02,0.3025627]
[1748983261374,1.4814593,661.57,661.02,0.3025627]
[1748983261375,1.0303652,661.33,661.02,0.3025627]
[1748983261575,1.0303652,661.32,661.02,0.3025627]
[1748983261779,1.0303652,661.31,661.02,0.3025627]
[1748983262082,1.1142993,661.41,661.02,0.3025627]
[1748983262083,1.0303652,661.3,661.02,0.3025627]
[1748983262280,1.0303652,661.29,661.02,0.3025627]
[1748983262482,1.0303652,661.28,661.02,0.3025627]
[1748983262685,1.0303652,661.27,661.02,0.3025627]
[1748983262987,1.0303652,661.26,661.02,0.3025627]
[1748983263180,1.0303652,661.25,661.02,0.3025627]
[1748983263384,1.0303652,661.24,661.02,0.3025627]
[1748983263575,1.0303652,661.23,661.02,0.3025627]
[1748983263780,1.0303652,661.22,661.02,0.3025627]
[1748983263976,1.0303652,661.21,661.02,0.3025627]
[1748983264280,1.0303652,661.2,661.02,0.3025627]
[1748983264481,1.0303652,661.19,661.02,0.3025627]
[1748983264678,1.0303652,661.18,661.02,0.3025627]
[1748983264876,1.03100901,661.17,661.02,0.3025627]
[1748983265177,1.03100901,661.16,661.02,0.3025627]
[1748983265380,1.03100901,661.15,661.02,0.3025627]
[1748983265677,1.11570331,661.4,661.02,0.3025627]
[1748983265880,1.03128117,661.39,661.02,0.3025627]
[1748983266082,1.03128117,661.38,661.02,0.3025627]
[1748983266278,1.03128117,661.37,661.02,0.3025627]
[1748983266481,3.68209165,662.23,661.02,0.3025627]
[1748983266482,1.03128117,661.36,661.02,0.3025627]
[1748983266683,1.03128117,661.35,661.02,0.3025627]
[1748983266884,1.03128117,661.34,661.02,0.3025627]
[1748983267079,1.03128117,661.33,661.02,0.3025627]
[1748983267285,1.03128117,661.32,661.02,0.3025627]
[1748983267484,3.68209165,662.5,661.02,0.3025627]
[1748983267485,1.03128117,661.31,661.02,0.3025627]
[1748983267687,1.03128117,661.3,661.02,0.3025627]
[1748983267887,1.03128117,661.29,661.02,0.3025627]
[1748983268187,3.68209165,662.49,661.02,0.3025627]
[1748983268188,1.03128117,661.28,661.02,0.3025627]
[1748983268386,1.03128117,661.27,661.02,0.3025627]
[1748983268684,1.03191603,661.26,661.02,0.3025627]
[1748983268881,1.03191603,661.25,661.02,0.3025627]
[1748983269085,3.68209165,662.48,661.02,0.3025627]
[1748983269086,1.03191603,661.24,661.02,0.3025627]
[1748983269286,1.03191603,661.23,661.02,0.3025627]
[1748983269487,1.03191603,661.22,661.02,0.3025627]
[1748983269788,1.11688656,661.54,661.02,0.3025627]
[1748983269982,1.03211066,661.53,661.02,0.3025627]
[1748983270186,1.03211066,661.52,661.02,0.3025627]
[1748983270381,1.03211066,661.51,661.02,0.3025627]
[1748983270586,1.11688656,661.55,661.02,0.3025627]
[1748983270587,1.03211066,661.5,661.02,0.3025627]
[1748983270786,1.03211066,661.49,661.02,0.3025627]
[1748983271088,1.03211066,661.48,661.02,0.3025627]
[1748983271287,1.03211066,661.47,661.02,0.3025627]
[1748983271484,1.03211066,661.46,661.02,0.3025627]
[1748983271681,1.03211066,661.45,661.02,0.3025627]
[1748983271884,1.03211066,661.44,661.02,0.3025627]
[1748983272083,1.03211066,661.43,661.02,0.3025627]
[1748983272286,1.03211066,661.42,661.02,0.3025627]
[1748983272486,1.4814593,661.72,661.02,0.3025627]
[1748983272687,1.1175161,661.54,661.02,0.3025627]
[1748983272984,1.0331275,661.53,661.02,0.3025627]
[1748983273183,1.0331275,661.52,661.02,0.3025627]
[1748983273385,1.0331275,661.51,661.02,0.3025627]
[1748983273582,1.1175161,661.53,661.02,0.3025627]
[1748983273583,1.0331275,661.5,661.02,0.3025627]
[1748983273786,1.1175161,661.53,661.02,0.3025627]
[1748983273787,1.0331275,661.49,661.02,0.3025627]
[1748983274081,1.0331275,661.48,661.02,0.3025627]
[1748983274287,1.0331275,661.47,661.02,0.3025627]
[1748983274589,1.0331275,661.46,661.02,0.3025627]
[1748983274791,1.0331275,661.45,661.02,0.3025627]
[1748983274990,1.0331275,661.44,661.02,0.3025627]
[1748983275189,1.0331275,661.43,661.02,0.3025627]
[1748983275488,1.0331275,661.42,661.02,0.3025627]
[1748983275690,1.0331275,661.41,661.02,0.3025627]
[1748983275890,1.0331275,661.4,661.02,0.3025627]
[1748983276087,1.0331275,661.39,661.02,0.3025627]
[1748983276290,3.68209165,662.15,661.02,0.3025627]
[1748983276291,1.0331275,661.38,661.02,0.3025627]
[1748983276494,1.03381802,661.37,661.02,0.3025627]
[1748983276687,1.03381802,661.36,661.02,0.3025627]
[1748983276889,1.0338159,661.35,661.02,0.3025627]
[1748983277088,1.0338159,661.34,661.02,0.3025627]
[1748983277392,1.0338159,661.33,661.02,0.3025627]
[1748983277588,1.0338159,661.32,661.02,0.3025627]
[1748983277792,1.0338159,661.31,661.02,0.3025627]
[1748983277991,1.0338159,661.3,661.02,0.3025627]
[1748983278294,1.11826035,661.44,661.02,0.3025627]
[1748983278295,1.0338159,661.29,661.02,0.3025627]
[1748983278489,1.0338159,661.28,661.02,0.3025627]
[1748983278687,1.0338159,661.27,661.02,0.3025627]
[1748983278891,1.0338159,661.26,661.02,0.3025627]
[1748983279192,1.0338159,661.25,661.02,0.3025627]
[1748983279394,1.0338159,661.24,661.02,0.3025627]
[1748983279595,1.0338159,661.23,661.02,0.3025627]
[1748983279797,1.0338159,661.22,661.02,0.3025627]
[1748983279992,1.0338159,661.21,661.02,0.3025627]
[1748983280192,1.11826035,661.49,661.02,0.3025627]
[1748983280395,2.15294977,661.48,661.02,0.3025627]
[1748983280696,1.03406001,661.47,661.02,0.3025627]
[1748983280896,1.03406001,661.46,661.02,0.3025627]
[1748983281092,1.03406001,661.45,661.02,0.3025627]
[1748983281291,1.03406001,661.44,661.02,0.3025627]
[1748983281494,1.03406001,661.43,661.02,0.3025627]
[1748983281694,1.03406001,661.42,661.02,0.3025627]
[1748983281895,1.03406001,661.41,661.02,0.3025627]
[1748983282096,1.03406001,661.4,661.02,0.3025627]
[1748983282291,1.03406001,661.39,661.02,0.3025627]
[1748983282494,1.03406001,661.38,661.02,0.3025627]
[1748983282697,1.03406001,661.37,661.02,0.3025627]
[1748983283005,1.03406001,661.36,661.02,0.3025627]
[1748983283197,1.03406001,661.35,661.02,0.3025627]
[1748983283391,1.03406001,661.34,661.02,0.3025627]
[1748983283590,1.03406001,661.33,661.02,0.3025627]
[1748983283795,1.03406001,661.32,661.02,0.3025627]
[1748983284095,1.03396877,661.31,661.02,0.3025627]
[1748983284291,1.03396877,661.3,661.02,0.3025627]
[1748983284496,1.03396877,661.29,661.02,0.3025627]
[1748983284696,1.03396877,661.28,661.02,0.3025627]
[1748983284892,1.03396877,661.27,661.02,0.3025627]
[1748983285091,1.03396877,661.26,661.02,0.3025627]
[1748983285295,1.03396877,661.25,661.02,0.3025627]
[1748983285492,1.1191793,661.46,661.02,0.3025627]
[1748983285493,1.03396877,661.24,661.02,0.3025627]
[1748983285696,1.03396877,661.23,661.02,0.3025627]
[1748983285896,1.4814593,661.61,661.02,0.3025627]
[1748983285897,1.03396877,661.22,661.02,0.3025627]
[1748983286093,1.03396877,661.21,661.02,0.3025627]
[1748983286298,1.1191793,661.44,661.02,0.3025627]
[1748983286299,1.03396877,661.2,661.02,0.3025627]
[1748983286493,1.03396877,661.19,661.02,0.3025627]
[1748983286698,1.1191793,661.44,661.02,0.3025627]
[1748983286699,1.03396877,661.18,661.02,0.3025627]
[1748983286898,1.1191793,661.44,661.02,0.3025627]
[1748983287093,1.03594724,661.43,661.02,0.3025627]
[1748983287298,1.03594724,661.42,661.02,0.3025627]
[1748983287599,1.03594724,661.41,661.02,0.3025627]
[1748983287793,1.03594724,661.4,661.02,0.3025627]
[1748983287997,1.03594724,661.39,661.02,0.3025627]
[1748983288195,1.03591126,661.38,661.02,0.3025627]
[1748983288395,1.03591126,661.37,661.02,0.3025627]
[1748983288598,1.03591126,661.36,661.02,0.3025627]
[1748983288899,1.03591126,661.35,661.02,0.3025627]
[1748983289103,1.03591126,661.34,661.02,0.3025627]
[1748983289295,1.03591126,661.33,661.02,0.3025627]
[1748983289496,1.03591126,661.32,661.02,0.3025627]
[1748983289800,1.03591126,661.31,661.02,0.3025627]
[1748983290002,1.03591126,661.3,661.02,0.3025627]
[1748983290197,1.03591126,661.29,661.02,0.3025627]
[1748983290400,1.03591126,661.28,661.02,0.3025627]
[1748983290594,1.03591126,661.27,661.02,0.3025627]
[1748983290796,1.03591126,661.26,661.02,0.3025627]
[1748983291097,1.03591126,661.25,661.02,0.3025627]
[1748983291295,1.03591126,661.24,661.02,0.3025627]
[1748983291498,1.03591126,661.23,661.02,0.3025627]
[1748983291697,1.03591126,661.22,661.02,0.3025627]
[1748983291901,1.4814593,661.49,661.02,0.3025627]
[1748983292102,1.11966992,661.37,661.02,0.3025627]
[1748983292402,1.03610306,661.36,661.02,0.3025627]
[1748983292605,1.03610306,661.35,661.02,0.3025627]
[1748983292801,1.03610306,661.34,661.02,0.3025627]
[1748983293102,1.03610306,661.33,661.02,0.3025627]
[1748983293302,1.11966992,661.38,661.02,0.3025627]
[1748983293303,1.03610306,661.32,661.02,0.3025627]
[1748983293503,1.03610306,661.31,661.02,0.3025627]
[1748983293702,1.03610306,661.3,661.02,0.3025627]
[1748983294001,1.03610306,661.29,661.02,0.3025627]
[1748983294203,1.03610306,661.28,661.02,0.3025627]
[1748983294504,1.03610306,661.27,661.02,0.3025627]
[1748983294705,1.03610306,661.26,661.02,0.3025627]
[1748983295004,1.03610306,661.25,661.02,0.3025627]
[1748983295204,1.03610306,661.24,661.02,0.3025627]
[1748983295405,1.03610306,661.23,661.02,0.3025627]
[1748983295610,1.03610306,661.22,661.02,0.3025627]
[1748983295803,1.03622565,661.21,661.02,0.3025627]
[1748983296003,1.03622565,661.2,661.02,0.3025627]
[1748983296201,1.03622565,661.19,661.02,0.3025627]
[1748983296403,1.03622565,661.18,661.02,0.3025627]
[1748983296602,1.03622565,661.17,661.02,0.3025627]
[1748983296802,1.03622565,661.16,661.02,0.3025627]
[1748983297006,1.03622565,661.15,661.02,0.3025627]
[1748983297205,1.03622565,661.14,661.02,0.3025627]
[1748983297405,1.11985999,661.45,661.02,0.3025627]
[1748983297701,1.03564224,661.44,661.02,0.3025627]
[1748983297899,1.03564224,661.43,661.02,0.3025627]
[1748983298101,1.03564224,661.42,661.02,0.3025627]
[1748983298305,1.03564224,661.41,661.02,0.3025627]
[1748983298602,1.03564224,661.4,661.02,0.3025627]
[1748983298802,1.03564224,661.39,661.02,0.3025627]
[1748983299001,1.03564224,661.38,661.02,0.3025627]
[1748983299202,1.03564224,661.37,661.02,0.3025627]
[1748983299403,1.03564224,661.36,661.02,0.3025627]
[1748983299602,1.4814593,661.63,661.02,0.3025627]
[1748983299802,1.11953539,661.45,661.02,0.3025627]
[1748983300002,1.03529561,661.44,661.02,0.3025627]
[1748983300207,1.03529561,661.43,661.02,0.3025627]
[1748983300405,1.03529561,661.42,661.02,0.3025627]
[1748983300600,1.11953539,661.45,661.02,0.3025627]
[1748983300601,1.03529561,661.41,661.02,0.3025627]
[1748983300806,1.03529561,661.4,661.02,0.3025627]
[1748983301003,1.03529561,661.39,661.02,0.3025627]
[1748983301207,1.03529561,661.38,661.02,0.3025627]
[1748983301509,1.03529561,661.37,661.02,0.3025627]
[1748983301710,1.03529561,661.36,661.02,0.3025627]
[1748983301907,1.03529561,661.35,661.02,0.3025627]
[1748983302204,1.03529561,661.34,661.02,0.3025627]
[1748983302402,1.03529561,661.33,661.02,0.3025627]
[1748983302603,1.03529561,661.32,661.02,0.3025627]
[1748983302803,1.03529561,661.31,661.02,0.3025627]
[1748983303002,1.11953539,661.44,661.02,0.3025627]
[1748983303003,1.03529561,661.3,661.02,0.3025627]
[1748983303203,1.03529561,661.29,661.02,0.3025627]
[1748983303407,1.03529561,661.28,661.02,0.3025627]
[1748983303607,1.11953539,661.44,661.02,0.3025627]
[1748983303608,1.03558429,661.27,661.02,0.3025627]
[1748983303807,1.03558429,661.26,661.02,0.3025627]
[1748983304005,1.03558429,661.25,661.02,0.3025627]
[1748983304206,1.03558429,661.24,661.02,0.3025627]
[1748983304404,1.03558429,661.23,661.02,0.3025627]
[1748983304610,1.03558429,661.22,661.02,0.3025627]
[1748983304809,1.03558429,661.21,661.02,0.3025627]
[1748983305007,1.03558429,661.2,661.02,0.3025627]
[1748983305210,1.03558429,661.19,661.02,0.3025627]
[1748983305508,1.03558429,661.18,661.02,0.3025627]
[1748983305807,1.03558429,661.17,661.02,0.3025627]
[1748983306006,1.03558429,661.16,661.02,0.3025627]
[1748983306210,1.03558429,661.15,661.02,0.3025627]
[1748983306410,1.11952798,661.44,661.02,0.3025627]
[1748983306611,1.11952798,661.35,661.02,0.3025627]
[1748983306806,1.0367605,661.34,661.02,0.3025627]
[1748983307009,1.0367605,661.33,661.02,0.3025627]
[1748983307210,1.0367605,661.32,661.02,0.3025627]
[1748983307410,1.0367605,661.31,661.02,0.3025627]
[1748983307712,1.03676843,661.3,661.02,0.3025627]
[1748983307913,1.03676843,661.29,661.02,0.3025627]
[1748983308112,1.03676843,661.28,661.02,0.3025627]
[1748983308312,1.03676843,661.27,661.02,0.3025627]
[1748983308512,1.03676843,661.26,661.02,0.3025627]
[1748983308710,1.03676843,661.25,661.02,0.3025627]
[1748983308910,1.03676843,661.24,661.02,0.3025627]
[1748983309112,1.03676843,661.23,661.02,0.3025627]
[1748983309312,1.03676843,661.22,661.02,0.3025627]
[1748983309508,1.03676843,661.21,661.02,0.3025627]
[1748983309713,1.03676843,661.2,661.02,0.3025627]
[1748983309912,1.03676843,661.19,661.02,0.3025627]
[1748983310108,1.03676843,661.18,661.02,0.3025627]
[1748983310314,1.03676843,661.17,661.02,0.3025627]
[1748983310616,1.03676843,661.16,661.02,0.3025627]
[1748983310809,1.03676843,661.15,661.02,0.3025627]
[1748983311007,1.11955597,661.39,661.02,0.3025627]
[1748983311212,1.03665778,661.38,661.02,0.3025627]
[1748983311411,1.03665778,661.37,661.02,0.3025627]
[1748983311716,1.03665778,661.36,661.02,0.3025627]
[1748983311909,1.03665778,661.35,661.02,0.3025627]
[1748983312112,1.03665778,661.34,661.02,0.3025627]
[1748983312311,1.11955597,661.39,661.02,0.3025627]
[1748983312312,1.03665778,661.33,661.02,0.3025627]
[1748983312515,1.03665778,661.32,661.02,0.3025627]
[1748983312716,1.11955597,661.39,661.02,0.3025627]
[1748983312717,1.03665778,661.31,661.02,0.3025627]
[1748983313014,1.03665778,661.3,661.02,0.3025627]
[1748983313212,1.03665778,661.29,661.02,0.3025627]
[1748983313414,1.03665778,661.28,661.02,0.3025627]
[1748983313617,1.03665778,661.27,661.02,0.3025627]
[1748983313917,1.03665778,661.26,661.02,0.3025627]
[1748983314117,1.03665778,661.25,661.02,0.3025627]
[1748983314313,1.03665778,661.24,661.02,0.3025627]
[1748983314512,1.03665778,661.23,661.02,0.3025627]
[1748983314714,1.03665778,661.22,661.02,0.3025627]
[1748983314913,1.03665778,661.21,661.02,0.3025627]
[1748983315113,1.03665778,661.2,661.02,0.3025627]
[1748983315316,1.03665778,661.19,661.02,0.3025627]
[1748983315514,1.03661409,661.18,661.02,0.3025627]
[1748983315715,1.03661409,661.17,661.02,0.3025627]
[1748983315920,1.03661409,661.16,661.02,0.3025627]
[1748983316119,1.03661409,661.15,661.02,0.3025627]
[1748983316320,1.49271386,661.52,661.02,0.3025627]
[1748983316321,1.03661409,661.14,661.02,0.3025627]
[1748983316825,1.11956383,661.38,661.02,0.3025627]
[1748983317022,1.03676555,661.37,661.02,0.3025627]
[1748983317223,1.03676555,661.36,661.02,0.3025627]
[1748983317421,1.03676555,661.35,661.02,0.3025627]
[1748983317619,1.03676555,661.34,661.02,0.3025627]
[1748983317824,1.03676555,661.33,661.02,0.3025627]
[1748983318025,1.03676555,661.32,661.02,0.3025627]